fUSD/lending_fUSD_20260611
["ID","MTS","AMOUNT","RATE_DAILY","PERIOD"]
[424807471,1781176242000,-14297.61484587,0.00011099,2]
[424807474,1781176242000,-619.52791668,0.00011124,2]
[424807485,1781176242000,-619.52791668,0.00011201,2]
[424807484,1781176242000,-619.52791668,0.00011188,2]
[424807483,1781176242000,-1555.26,0.00011181,2]
[424807473,1781176242000,-619.52791668,0.0001111,2]
[424807482,1781176242000,-166.66,0.00011178,2]
[424807475,1781176242000,-20540.24276242,0.00011133,2]
[424807476,1781176242000,-619.52791668,0.00011137,2]
[424807481,1781176242000,-619.52791668,0.00011176,2]
[424807514,1781176242000,-1555.26,0.00012299,2]
[424807489,1781176242000,-619.52791668,0.00011237,2]
[424807522,1781176242000,-186.7,0.00012815,2]
[424807562,1781176242000,-299.60307495,0.00013609,2]
[424807561,1781176242000,-150.0,0.00013597,2]
[424807550,1781176242000,-299.60307495,0.00013548,2]
[424807554,1781176242000,-299.60307495,0.00013563,2]
[424807552,1781176242000,-150.0,0.00013556,2]
[424807553,1781176242000,-150.0,0.00013561,2]
[424807556,1781176242000,-299.60307495,0.00013578,2]
[424807558,1781176242000,-150.0,0.0001359,2]
[424807560,1781176242000,-299.60307495,0.00013594,2]
[424807555,1781176242000,-150.0,0.00013565,2]
[424807559,1781176242000,-150.0,0.00013591,2]
[424807557,1781176242000,-150.0,0.00013581,2]
[424807563,1781176242000,-150.0,0.00013613,2]
[424807566,1781176242000,-150.0,0.00013624,2]
[424807570,1781176242000,-150.0,0.00013643,2]
[424807575,1781176242000,-299.60307495,0.00013669,2]
[424807565,1781176242000,-150.0,0.00013624,2]
[424807571,1781176242000,-150.0,0.00013644,2]
[424807564,1781176242000,-150.0,0.00013617,2]
[424807568,1781176242000,-150.0,0.00013634,2]
[424807567,1781176242000,-299.60307495,0.00013624,2]
[424807572,1781176242000,-299.60307495,0.00013654,2]
[424807569,1781176242000,-299.60307495,0.00013639,2]
[424807573,1781176242000,-150.0,0.00013658,2]
[424807574,1781176242000,-150.0,0.00013669,2]
[424807577,1781176242000,-150.0,0.00013675,2]
[424807578,1781176242000,-299.60307495,0.00013684,2]
[424807579,1781176242000,-150.0,0.00013692,2]
[424807516,1781176242000,-171.13,0.00012329,2]
[424807551,1781176242000,-150.0,0.0001355,2]
[424807545,1781176242000,-150.0,0.00013519,2]
[424807576,1781176242000,-150.0,0.0001367,2]
[424807541,1781176242000,-299.60307495,0.00013503,2]
[424807547,1781176242000,-150.0,0.00013524,2]
[424807518,1781176242000,-311.9669302,0.000125,2]
[424807517,1781176242000,-382.20684161,0.00012473,2]
[424807523,1781176242000,-276.0,0.00012877,2]
[424807519,1781176242000,-307.5643183,0.000125,2]
[424807521,1781176242000,-199.5,0.00012801,2]
[424807520,1781176242000,-2000.0,0.00012612,2]
[424807524,1781176242000,-5688.93883939,0.00013,2]
[424807527,1781176242000,-5426.07150161,0.0001305,2]
[424807533,1781176242000,-150.0,0.00013488,2]
[424807525,1781176242000,-9509.37896126,0.00013,5]
[424807526,1781176242000,-20540.24276242,0.00013017,2]
[424807530,1781176242000,-150.0,0.00013488,2]
[424807529,1781176242000,-150.0,0.00013488,2]
[424807528,1781176242000,-1555.26,0.00013417,2]
[424807536,1781176242000,-150.0,0.00013488,2]
[424807544,1781176242000,-299.60307495,0.00013518,2]
[424807534,1781176242000,-150.0,0.00013488,2]
[424807546,1781176242000,-150.0,0.00013522,2]
[424807542,1781176242000,-2129.0,0.00013506,2]
[424807543,1781176242000,-150.0,0.00013514,2]
[424807537,1781176242000,-299.60307495,0.00013488,2]
[424807539,1781176242000,-150.0,0.00013488,2]
[424807548,1781176242000,-299.60307495,0.00013533,2]
[424807540,1781176242000,-1000.0,0.000135,2]
[424807538,1781176242000,-203.85144979,0.00013488,2]
[424807531,1781176242000,-150.0,0.00013488,2]
[424807535,1781176242000,-150.0,0.00013488,2]
[424807532,1781176242000,-150.0,0.00013488,2]
[424807549,1781176242000,-150.0,0.00013539,2]
[424807626,1781176243000,-500.0,0.00013698,2]
[424807628,1781176243000,-500.0,0.00013698,2]
[424807630,1781176243000,-500.0,0.00013698,2]
[424807631,1781176243000,-504.25668169,0.00013698,2]
[424807609,1781176243000,-500.0,0.00013698,2]
[424807625,1781176243000,-500.0,0.00013698,2]
[424807632,1781176243000,-500.0,0.00013698,2]
[424807622,1781176243000,-500.0,0.00013698,2]
[424807633,1781176243000,-500.0,0.00013698,2]
[424807623,1781176243000,-500.0,0.00013698,2]
[424807629,1781176243000,-500.0,0.00013698,2]
[424807624,1781176243000,-500.0,0.00013698,2]
[424807634,1781176243000,-500.0,0.00013698,2]
[424807643,1781176243000,-500.0,0.00013698,2]
[424807636,1781176243000,-500.0,0.00013698,2]
[424807635,1781176243000,-500.0,0.00013698,2]
[424807647,1781176243000,-500.0,0.00013698,2]
[424807646,1781176243000,-500.0,0.00013698,2]
[424807645,1781176243000,-500.0,0.00013698,2]
[424807639,1781176243000,-500.0,0.00013698,2]
[424807638,1781176243000,-500.0,0.00013698,2]
[424807637,1781176243000,-500.0,0.00013698,2]
[424807644,1781176243000,-473.88481406,0.00013698,2]
[424807640,1781176243000,-500.0,0.00013698,2]
[424807641,1781176243000,-500.0,0.00013698,2]
[424807642,1781176243000,-500.0,0.00013698,2]
[424807613,1781176243000,-500.0,0.00013698,2]
[424807648,1781176243000,-500.0,0.00013698,2]
[424807627,1781176243000,-500.0,0.00013698,2]
[424807611,1781176243000,-500.0,0.00013698,2]
[424807591,1781176243000,-500.0,0.00013698,2]
[424807607,1781176243000,-500.0,0.00013698,2]
[424807650,1781176243000,-504.05769263,0.00013698,2]
[424807587,1781176243000,-500.0,0.00013698,2]
[424807589,1781176243000,-500.0,0.00013698,2]
[424807588,1781176243000,-500.0,0.00013698,2]
[424807584,1781176243000,-500.0,0.00013698,2]
[424807586,1781176243000,-500.0,0.00013698,2]
[424807581,1781176243000,-150.0,0.00013694,2]
[424807582,1781176243000,-500.0,0.00013698,2]
[424807583,1781176243000,-500.0,0.00013698,2]
[424807585,1781176243000,-500.0,0.00013698,2]
[424807590,1781176243000,-500.0,0.00013698,2]
[424807593,1781176243000,-500.0,0.00013698,2]
[424807599,1781176243000,-500.0,0.00013698,2]
[424807612,1781176243000,-500.0,0.00013698,2]
[424807596,1781176243000,-500.0,0.00013698,2]
[424807592,1781176243000,-500.0,0.00013698,2]
[424807597,1781176243000,-500.0,0.00013698,2]
[424807600,1781176243000,-500.0,0.00013698,2]
[424807595,1781176243000,-500.0,0.00013698,2]
[424807602,1781176243000,-500.0,0.00013698,2]
[424807604,1781176243000,-500.0,0.00013698,2]
[424807615,1781176243000,-500.0,0.00013698,2]
[424807616,1781176243000,-500.0,0.00013698,2]
[424807620,1781176243000,-500.0,0.00013698,2]
[424807621,1781176243000,-500.0,0.00013698,2]
[424807619,1781176243000,-500.0,0.00013698,2]
[424807618,1781176243000,-500.0,0.00013698,2]
[424807605,1781176243000,-500.0,0.00013698,2]
[424807598,1781176243000,-500.0,0.00013698,2]
[424807649,1781176243000,-500.0,0.00013698,2]
[424807594,1781176243000,-500.0,0.00013698,2]
[424807652,1781176243000,-500.0,0.00013698,2]
[424807694,1781176243000,-2726.92,0.00013698,2]
[424807695,1781176243000,-2726.92,0.00013698,2]
[424807692,1781176243000,-2726.92,0.00013698,2]
[424807686,1781176243000,-2726.92,0.00013698,2]
[424807698,1781176243000,-2726.92,0.00013698,2]
[424807693,1781176243000,-2726.92,0.00013698,2]
[424807696,1781176243000,-2726.92,0.00013698,2]
[424807689,1781176243000,-2726.92,0.00013698,2]
[424807687,1781176243000,-2726.92,0.00013698,2]
[424807697,1781176243000,-2726.92,0.00013698,2]
[424807688,1781176243000,-2726.92,0.00013698,2]
[424807691,1781176243000,-2726.92,0.00013698,2]
[424807690,1781176243000,-2726.92,0.00013698,2]
[424807683,1781176243000,-2726.92,0.00013698,2]
[424807699,1781176243000,-2726.92,0.00013698,2]
[424807701,1781176243000,-500.0,0.00013698,2]
[424807702,1781176243000,-500.0,0.00013698,2]
[424807703,1781176243000,-500.0,0.00013698,2]
[424807705,1781176243000,-500.0,0.00013698,2]
[424807708,1781176243000,-500.0,0.00013698,2]
[424807711,1781176243000,-500.0,0.00013698,2]
[424807706,1781176243000,-500.0,0.00013698,2]
[424807707,1781176243000,-500.0,0.00013698,2]
[424807704,1781176243000,-500.0,0.00013698,2]
[424807710,1781176243000,-500.0,0.00013698,2]
[424807713,1781176243000,-500.0,0.00013698,2]
[424807712,1781176243000,-500.0,0.00013698,2]
[424807651,1781176243000,-500.0,0.00013698,2]
[424807700,1781176243000,-500.0,0.00013698,2]
[424807685,1781176243000,-2726.92,0.00013698,2]
[424807709,1781176243000,-527.02640831,0.00013698,2]
[424807684,1781176243000,-2726.92,0.00013698,2]
[424807679,1781176243000,-539.51,0.00013698,2]
[424807659,1781176243000,-500.0,0.00013698,2]
[424807653,1781176243000,-500.0,0.00013698,2]
[424807657,1781176243000,-500.0,0.00013698,2]
[424807654,1781176243000,-500.0,0.00013698,2]
[424807656,1781176243000,-500.0,0.00013698,2]
[424807658,1781176243000,-539.51,0.00013698,2]
[424807661,1781176243000,-500.0,0.00013698,2]
[424807672,1781176243000,-539.51,0.00013698,2]
[424807671,1781176243000,-539.51,0.00013698,2]
[424807660,1781176243000,-539.51,0.00013698,2]
[424807663,1781176243000,-500.0,0.00013698,2]
[424807662,1781176243000,-539.51,0.00013698,2]
[424807665,1781176243000,-500.0,0.00013698,2]
[424807655,1781176243000,-500.0,0.00013698,2]
[424807664,1781176243000,-539.51,0.00013698,2]
[424807670,1781176243000,-539.51,0.00013698,2]
[424807674,1781176243000,-539.51,0.00013698,2]
[424807680,1781176243000,-539.51,0.00013698,2]
[424807682,1781176243000,-2726.92,0.00013698,2]
[424807681,1781176243000,-2726.92,0.00013698,2]
[424807678,1781176243000,-539.51,0.00013698,2]
[424807675,1781176243000,-539.51,0.00013698,2]
[424807677,1781176243000,-539.51,0.00013698,2]
[424807676,1781176243000,-539.51,0.00013698,2]
[424807673,1781176243000,-539.51,0.00013698,2]
[424807669,1781176243000,-500.0,0.00013698,2]
[424807666,1781176243000,-539.51,0.00013698,2]
[424807667,1781176243000,-500.0,0.00013698,2]
[424807668,1781176243000,-539.51,0.00013698,2]
[424807743,1781176244000,-660.37,0.00013698,2]
[424807741,1781176244000,-660.37,0.00013698,2]
[424807746,1781176244000,-660.37,0.00013698,2]
[424807747,1781176244000,-660.37,0.00013698,2]
[424807745,1781176244000,-660.37,0.00013698,2]
[424807748,1781176244000,-660.37,0.00013698,2]
[424807754,1781176244000,-660.37,0.00013698,2]
[424807752,1781176244000,-660.37,0.00013698,2]
[424807740,1781176244000,-660.37,0.00013698,2]
[424807756,1781176244000,-660.37,0.00013698,2]
[424807758,1781176244000,-500.0,0.00013698,2]
[424807749,1781176244000,-660.37,0.00013698,2]
[424807755,1781176244000,-660.37,0.00013698,2]
[424807751,1781176244000,-660.37,0.00013698,2]
[424807750,1781176244000,-660.37,0.00013698,2]
[424807761,1781176244000,-500.0,0.00013698,2]
[424807762,1781176244000,-500.0,0.00013698,2]
[424807757,1781176244000,-660.37,0.00013698,2]
[424807739,1781176244000,-660.37,0.00013698,2]
[424807763,1781176244000,-247.44478835,0.00013698,2]
[424807753,1781176244000,-660.37,0.00013698,2]
[424807738,1781176244000,-660.37,0.00013698,2]
[424807716,1781176244000,-500.0,0.00013698,2]
[424807736,1781176244000,-993.33,0.00013698,2]
[424807765,1781176244000,-500.0,0.00013698,2]
[424807723,1781176244000,-993.33,0.00013698,2]
[424807714,1781176244000,-500.0,0.00013698,2]
[424807715,1781176244000,-500.0,0.00013698,2]
[424807717,1781176244000,-492.8427843,0.00013698,2]
[424807720,1781176244000,-993.33,0.00013698,2]
[424807721,1781176244000,-993.33,0.00013698,2]
[424807719,1781176244000,-993.33,0.00013698,2]
[424807722,1781176244000,-993.33,0.00013698,2]
[424807718,1781176244000,-993.33,0.00013698,2]
[424807737,1781176244000,-660.37,0.00013698,2]
[424807724,1781176244000,-993.33,0.00013698,2]
[424807730,1781176244000,-993.33,0.00013698,2]
[424807726,1781176244000,-993.33,0.00013698,2]
[424807728,1781176244000,-993.33,0.00013698,2]
[424807729,1781176244000,-993.33,0.00013698,2]
[424807731,1781176244000,-993.33,0.00013698,2]
[424807732,1781176244000,-993.33,0.00013698,2]
[424807725,1781176244000,-993.33,0.00013698,2]
[424807733,1781176244000,-993.33,0.00013698,2]
[424807735,1781176244000,-993.33,0.00013698,2]
[424807734,1781176244000,-993.33,0.00013698,2]
[424807727,1781176244000,-993.33,0.00013698,2]
[424807764,1781176244000,-500.0,0.00013698,2]
[424807771,1781176244000,-500.0,0.00013698,2]
[424807766,1781176244000,-500.0,0.00013698,2]
[424807793,1781176244000,-500.0,0.00013698,2]
[424807792,1781176244000,-500.0,0.00013698,2]
[424807794,1781176244000,-500.0,0.00013698,2]
[424807795,1781176244000,-500.0,0.00013698,2]
[424807798,1781176244000,-500.0,0.00013698,2]
[424807800,1781176244000,-500.0,0.00013698,2]
[424807799,1781176244000,-500.0,0.00013698,2]
[424807796,1781176244000,-500.0,0.00013698,2]
[424807801,1781176244000,-500.0,0.00013698,2]
[424807803,1781176244000,-500.0,0.00013698,2]
[424807806,1781176244000,-500.0,0.00013698,2]
[424807804,1781176244000,-500.0,0.00013698,2]
[424807812,1781176244000,-502.88764057,0.00013698,2]
[424807811,1781176244000,-500.0,0.00013698,2]
[424807810,1781176244000,-500.0,0.00013698,2]
[424807808,1781176244000,-500.0,0.00013698,2]
[424807805,1781176244000,-500.0,0.00013698,2]
[424807807,1781176244000,-500.0,0.00013698,2]
[424807809,1781176244000,-500.0,0.00013698,2]
[424807813,1781176244000,-500.0,0.00013698,2]
[424807760,1781176244000,-500.0,0.00013698,2]
[424807797,1781176244000,-500.0,0.00013698,2]
[424807791,1781176244000,-500.0,0.00013698,2]
[424807802,1781176244000,-415.12475003,0.00013698,2]
[424807786,1781176244000,-292.30346816,0.00013698,2]
[424807767,1781176244000,-500.0,0.00013698,2]
[424807789,1781176244000,-500.0,0.00013698,2]
[424807759,1781176244000,-500.0,0.00013698,2]
[424807770,1781176244000,-500.0,0.00013698,2]
[424807768,1781176244000,-500.0,0.00013698,2]
[424807769,1781176244000,-500.0,0.00013698,2]
[424807772,1781176244000,-500.0,0.00013698,2]
[424807775,1781176244000,-500.0,0.00013698,2]
[424807777,1781176244000,-500.0,0.00013698,2]
[424807774,1781176244000,-500.0,0.00013698,2]
[424807778,1781176244000,-500.0,0.00013698,2]
[424807773,1781176244000,-500.0,0.00013698,2]
[424807776,1781176244000,-500.0,0.00013698,2]
[424807781,1781176244000,-238.48508219,0.00013698,2]
[424807785,1781176244000,-500.0,0.00013698,2]
[424807787,1781176244000,-500.0,0.00013698,2]
[424807788,1781176244000,-500.0,0.00013698,2]
[424807784,1781176244000,-451.09713554,0.00013698,2]
[424807783,1781176244000,-500.0,0.00013698,2]
[424807779,1781176244000,-500.0,0.00013698,2]
[424807790,1781176244000,-500.0,0.00013698,2]
[424807780,1781176244000,-500.0,0.00013698,2]
[424807782,1781176244000,-500.0,0.00013698,2]
[424807849,1781176245000,-500.0,0.00013698,2]
[424807843,1781176245000,-500.0,0.00013698,2]
[424807837,1781176245000,-500.0,0.00013698,2]
[424807846,1781176245000,-500.0,0.00013698,2]
[424807845,1781176245000,-500.0,0.00013698,2]
[424807847,1781176245000,-500.0,0.00013698,2]
[424807848,1781176245000,-500.0,0.00013698,2]
[424807858,1781176245000,-500.0,0.00013698,2]
[424807854,1781176245000,-500.0,0.00013698,2]
[424807850,1781176245000,-500.0,0.00013698,2]
[424807853,1781176245000,-500.0,0.00013698,2]
[424807852,1781176245000,-632.22545111,0.00013698,2]
[424807867,1781176245000,-457.99285191,0.00013698,2]
[424807856,1781176245000,-500.0,0.00013698,2]
[424807857,1781176245000,-500.0,0.00013698,2]
[424807860,1781176245000,-500.0,0.00013698,2]
[424807862,1781176245000,-500.0,0.00013698,2]
[424807861,1781176245000,-500.0,0.00013698,2]
[424807863,1781176245000,-500.0,0.00013698,2]
[424807859,1781176245000,-500.0,0.00013698,2]
[424807869,1781176245000,-500.0,0.00013698,2]
[424807868,1781176245000,-500.0,0.00013698,2]
[424807866,1781176245000,-500.0,0.00013698,2]
[424807842,1781176245000,-500.0,0.00013698,2]
[424807855,1781176245000,-500.0,0.00013698,2]
[424807841,1781176245000,-500.0,0.00013698,2]
[424807816,1781176245000,-500.0,0.00013698,2]
[424807840,1781176245000,-500.0,0.00013698,2]
[424807864,1781176245000,-500.0,0.00013698,2]
[424807815,1781176245000,-500.0,0.00013698,2]
[424807819,1781176245000,-500.0,0.00013698,2]
[424807823,1781176245000,-500.0,0.00013698,2]
[424807821,1781176245000,-500.0,0.00013698,2]
[424807818,1781176245000,-500.0,0.00013698,2]
[424807817,1781176245000,-500.0,0.00013698,2]
[424807820,1781176245000,-500.0,0.00013698,2]
[424807814,1781176245000,-500.0,0.00013698,2]
[424807822,1781176245000,-500.0,0.00013698,2]
[424807824,1781176245000,-500.0,0.00013698,2]
[424807826,1781176245000,-500.0,0.00013698,2]
[424807825,1781176245000,-500.0,0.00013698,2]
[424807827,1781176245000,-500.0,0.00013698,2]
[424807829,1781176245000,-500.0,0.00013698,2]
[424807828,1781176245000,-500.0,0.00013698,2]
[424807832,1781176245000,-500.0,0.00013698,2]
[424807830,1781176245000,-500.0,0.00013698,2]
[424807835,1781176245000,-500.0,0.00013698,2]
[424807834,1781176245000,-201.9159218,0.00013698,2]
[424807833,1781176245000,-500.0,0.00013698,2]
[424807831,1781176245000,-549.51495302,0.00013698,2]
[424807836,1781176245000,-500.0,0.00013698,2]
[424807838,1781176245000,-500.0,0.00013698,2]
[424807839,1781176245000,-500.0,0.00013698,2]
[424807844,1781176245000,-171.51496798,0.00013698,2]
[424807865,1781176245000,-500.0,0.00013698,2]
[424807851,1781176245000,-500.0,0.00013698,2]
[424807870,1781176245000,-500.0,0.00013698,2]
[424807901,1781176245000,-299.60307495,0.00013715,2]
[424807897,1781176245000,-278.60891467,0.000137,2]
[424807903,1781176245000,-150.0,0.00013726,2]
[424807908,1781176245000,-150.0,0.00013746,2]
[424807911,1781176245000,-299.60307495,0.0001376,2]
[424807907,1781176245000,-299.60307495,0.00013745,2]
[424807914,1781176245000,-299.60307495,0.00013775,2]
[424807905,1781176245000,-150.0,0.00013737,2]
[424807910,1781176245000,-150.0,0.0001376,2]
[424807913,1781176245000,-150.0,0.00013772,2]
[424807912,1781176245000,-150.0,0.00013769,2]
[424807906,1781176245000,-150.0,0.00013744,2]
[424807904,1781176245000,-299.60307495,0.0001373,2]
[424807909,1781176245000,-150.0,0.0001376,2]
[424807915,1781176245000,-150.0,0.0001378,2]
[424807916,1781176245000,-150.0,0.00013787,2]
[424807926,1781176245000,-150.0,0.00013831,2]
[424807917,1781176245000,-299.60307495,0.0001379,2]
[424807920,1781176245000,-150.0,0.000138,2]
[424807918,1781176245000,-150.0,0.00013794,2]
[424807925,1781176245000,-150.0,0.00013828,2]
[424807919,1781176245000,-150.0,0.00013798,2]
[424807922,1781176245000,-150.0,0.00013817,2]
[424807921,1781176245000,-299.60307495,0.00013806,2]
[424807924,1781176245000,-150.0,0.00013824,2]
[424807894,1781176245000,-150.0,0.000137,2]
[424807898,1781176245000,-150.0,0.00013702,2]
[424807871,1781176245000,-500.0,0.00013698,2]
[424807896,1781176245000,-150.0,0.000137,2]
[424807900,1781176245000,-150.0,0.00013707,2]
[424807881,1781176245000,-22281.86,0.00013699,2]
[424807873,1781176245000,-557.54165227,0.00013698,2]
[424807872,1781176245000,-500.0,0.00013698,2]
[424807874,1781176245000,-500.0,0.00013698,2]
[424807875,1781176245000,-154.27,0.00013699,2]
[424807877,1781176245000,-196.43,0.00013699,2]
[424807880,1781176245000,-200.0,0.00013699,2]
[424807878,1781176245000,-163.7,0.00013699,2]
[424807876,1781176245000,-2500.0,0.00013699,2]
[424807882,1781176245000,-590.49772061,0.00013699,2]
[424807923,1781176245000,-299.60307495,0.00013821,2]
[424807888,1781176245000,-590.49772061,0.00013699,2]
[424807879,1781176245000,-818.5,0.00013699,2]
[424807884,1781176245000,-590.49772061,0.00013699,2]
[424807885,1781176245000,-590.49772061,0.00013699,2]
[424807902,1781176245000,-150.0,0.0001372,2]
[424807895,1781176245000,-150.0,0.000137,2]
[424807892,1781176245000,-486.41,0.000137,2]
[424807891,1781176245000,-299.60307495,0.000137,2]
[424807893,1781176245000,-150.0,0.000137,2]
[424807890,1781176245000,-590.49772061,0.00013699,2]
[424807899,1781176245000,-150.0,0.00013706,2]
[424807887,1781176245000,-590.49772061,0.00013699,2]
[424807889,1781176245000,-590.49772061,0.00013699,2]
[424807883,1781176245000,-590.49772061,0.00013699,2]
[424807886,1781176245000,-590.49772061,0.00013699,2]
[424807972,1781176246000,-150.0,0.0001403,2]
[424807966,1781176246000,-1500.0,0.00014,2]
[424807973,1781176246000,-150.0,0.00014033,2]
[424807975,1781176246000,-299.60307495,0.00014033,2]
[424807960,1781176246000,-150.0,0.00013987,2]
[424807958,1781176246000,-299.60307495,0.00013972,2]
[424807963,1781176246000,-26574.84911613,0.0001399,2]
[424807957,1781176246000,-150.0,0.00013965,2]
[424807959,1781176246000,-150.0,0.00013979,2]
[424807971,1781176246000,-150.0,0.00014018,2]
[424807974,1781176246000,-150.0,0.00014033,2]
[424807970,1781176246000,-299.60307495,0.00014017,2]
[424807983,1781176246000,-299.60307495,0.00014078,2]
[424807969,1781176246000,-1500.0,0.00014016,2]
[424807965,1781176246000,-150.0,0.00013999,2]
[424807968,1781176246000,-150.0,0.00014004,2]
[424807976,1781176246000,-150.0,0.00014036,2]
[424807979,1781176246000,-150.0,0.00014056,2]
[424807978,1781176246000,-150.0,0.0001405,2]
[424807977,1781176246000,-299.60307495,0.00014048,2]
[424807980,1781176246000,-299.60307495,0.00014063,2]
[424807985,1781176246000,-150.0,0.00014082,2]
[424807986,1781176246000,-150.0,0.00014087,2]
[424807984,1781176246000,-150.0,0.00014081,2]
[424807961,1781176246000,-299.60307495,0.00013987,2]
[424807967,1781176246000,-299.60307495,0.00014002,2]
[424807962,1781176246000,-150.0,0.00013987,2]
[424807945,1781176246000,-150.0,0.00013916,2]
[424807964,1781176246000,-150.0,0.00013999,2]
[424807982,1781176246000,-150.0,0.00014073,2]
[424807928,1781176246000,-150.0,0.00013849,2]
[424807932,1781176246000,-150.0,0.00013862,2]
[424807937,1781176246000,-150.0,0.0001389,2]
[424807930,1781176246000,-150.0,0.00013853,2]
[424807931,1781176246000,-150.0,0.00013862,2]
[424807927,1781176246000,-299.60307495,0.00013836,2]
[424807940,1781176246000,-150.0,0.00013896,2]
[424807935,1781176246000,-299.60307495,0.00013881,2]
[424807939,1781176246000,-150.0,0.00013894,2]
[424807929,1781176246000,-299.60307495,0.00013851,2]
[424807933,1781176246000,-299.60307495,0.00013866,2]
[424807956,1781176246000,-150.0,0.00013963,2]
[424807942,1781176246000,-299.60307495,0.00013896,2]
[424807941,1781176246000,-150.0,0.00013896,2]
[424807943,1781176246000,-150.0,0.00013901,2]
[424807944,1781176246000,-299.60307495,0.00013912,2]
[424807948,1781176246000,-299.60307495,0.00013927,2]
[424807946,1781176246000,-150.0,0.00013925,2]
[424807949,1781176246000,-150.0,0.00013927,2]
[424807950,1781176246000,-150.0,0.0001393,2]
[424807947,1781176246000,-150.0,0.00013926,2]
[424807951,1781176246000,-299.60307495,0.00013942,2]
[424807954,1781176246000,-299.60307495,0.00013957,2]
[424807955,1781176246000,-20540.24276242,0.00013958,2]
[424807953,1781176246000,-150.0,0.00013956,2]
[424807952,1781176246000,-150.0,0.00013953,2]
[424807981,1781176246000,-150.0,0.00014067,2]
[424807934,1781176246000,-150.0,0.00013875,2]
[424807989,1781176246000,-150.0,0.00014108,2]
[424808020,1781176246000,-299.60307495,0.00014245,2]
[424808017,1781176246000,-150.0,0.00014237,2]
[424808021,1781176246000,-150.0,0.00014255,2]
[424808019,1781176246000,-150.0,0.00014237,2]
[424808018,1781176246000,-150.0,0.00014237,2]
[424808024,1781176246000,-150.0,0.00014268,2]
[424808027,1781176246000,-205.421613,0.00014284,2]
[424808026,1781176246000,-299.60307495,0.00014275,2]
[424808032,1781176246000,-150.0,0.00014299,2]
[424808029,1781176246000,-150.0,0.00014289,2]
[424808025,1781176246000,-150.0,0.00014271,2]
[424808033,1781176246000,-150.0,0.00014305,2]
[424808022,1781176246000,-299.60307495,0.0001426,2]
[424808031,1781176246000,-150.0,0.00014292,2]
[424808035,1781176246000,-299.60307495,0.00014305,2]
[424808034,1781176246000,-150.0,0.00014305,2]
[424808036,1781176246000,-150.0,0.00014315,2]
[424808042,1781176246000,-150.0,0.0001434,2]
[424808037,1781176246000,-299.60307495,0.0001432,2]
[424808045,1781176246000,-299.60307495,0.00014351,2]
[424808039,1781176246000,-150.0,0.00014331,2]
[424808041,1781176246000,-150.0,0.00014339,2]
[424808043,1781176246000,-150.0,0.00014344,2]
[424808038,1781176246000,-150.0,0.00014328,2]
[424808040,1781176246000,-299.60307495,0.00014335,2]
[424807987,1781176246000,-299.60307495,0.00014093,2]
[424808030,1781176246000,-299.60307495,0.0001429,2]
[424808016,1781176246000,-150.0,0.00014237,2]